bitfinex-derivatives/quotes_SOLF0:USTF0_20230105
["timestamp","ask_amount","ask_price","bid_price","bid_amount"]
[1672880850269,10.0,13.173,13.168,0.06520127]
[1672880850485,10.0,13.173,13.166,0.07010287]
[1672880850899,15.197479,13.175,13.166,0.07010287]
[1672880851110,0.067479,13.175,13.168,15.13]
[1672880851949,10.0,13.174,13.147,158.58700287]
[1672880852163,10.0,13.174,13.166,37.986]
[1672880852478,10.0,13.174,13.168,15.03]
[1672880853320,113.899,13.173,13.168,15.03]
[1672880853531,10.0,13.172,13.168,15.03]
[1672880854677,37.966,13.173,13.168,15.03]
[1672880854894,37.973,13.171,13.168,53.01]
[1672880855104,37.973,13.171,13.168,15.03]
[1672880856689,10.0,13.17,13.166,15.18955343]
[1672880856898,37.978,13.169,13.166,15.18955343]
[1672880857108,10.0,13.168,13.166,15.12]
[1672880857633,75.957,13.169,13.166,15.12]
[1672880857839,10.0,13.168,13.166,15.12]
[1672880858683,47.982,13.168,13.166,15.12]
[1672880859203,47.982,13.168,13.165,15.12]
[1672880859416,113.974,13.165,13.158,15.03]
[1672880859839,10.0,13.166,13.158,15.03]
[1672880859840,10.0,13.164,13.158,15.03]
[1672880860054,10.0,13.162,13.158,15.03]
[1672880860686,38.002,13.161,13.158,15.03]
[1672880860896,10.0,13.16,13.158,15.03]
[1672880861316,48.005,13.16,13.158,15.03]
[1672880863412,124.013,13.16,13.158,15.03]
[1672880865416,124.013,13.16,13.157,15.01]
[1672880865841,114.013,13.16,13.157,15.01]
[1672880868464,114.013,13.16,13.142,60.59]
[1672880868465,10.0,13.159,13.153,15.12]
[1672880868680,114.036,13.158,13.153,15.12]
[1672880868888,10.0,13.157,13.153,15.12]
[1672880869413,10.0,13.154,13.153,15.12]
[1672880869733,10.0,13.157,13.153,15.0]
[1672880870468,0.06726923,13.158,13.153,15.0]
[1672880870781,0.06726923,13.158,13.156,15.0]
[1672880870991,10.0,13.16,13.156,15.0]
[1672880874561,10.0,13.16,13.154,15.12]
[1672880876979,10.0,13.16,13.156,15.12]
[1672880877194,10.0,13.164,13.156,15.12]
[1672880877195,0.06196344,13.163,13.156,15.12]
[1672880878557,0.06196344,13.163,13.154,15.13]
[1672880883183,0.06196344,13.163,13.157,15.12]
[1672880884763,634.0,13.164,13.163,0.00470198]
[1672880885178,10.0,13.163,13.156,15.03]
[1672880885602,10.0,13.163,13.155,0.06747664]
[1672880885811,10.0,13.163,13.154,15.18944831]
[1672880886338,1834.0,13.162,13.154,0.06944831]
[1672880886549,50.0,13.155,13.154,0.06944831]
[1672880886762,50.0,13.155,13.153,15.13]
[1672880887494,0.06893994,13.159,13.154,15.01]
[1672880887703,0.06893994,13.159,13.15,0.0642489]
[1672880887704,0.06893994,13.159,13.158,15.12]
[1672880887912,10.06460863,13.163,13.158,15.12]
[1672880888120,0.06460863,13.163,13.159,15.13]
[1672880888752,10.06460863,13.163,13.159,15.13]
[1672880889274,10.06460863,13.163,13.157,15.12]
[1672880890957,0.06460863,13.163,13.157,15.12]
[1672880891170,0.06460863,13.163,13.16,15.12]
[1672880891375,634.0,13.164,13.16,15.12]
[1672880891592,50.0,13.164,13.159,15.12]
[1672880894114,50.0,13.164,13.163,10.0]
[1672880894324,50.0,13.164,13.162,15.0]
[1672880897585,49.76784242,13.164,13.162,15.0]
[1672880906930,10.06957058,13.166,13.162,15.0]
[1672880907462,0.06957058,13.166,13.162,15.0]
[1672880908721,0.06957058,13.166,13.161,15.13]
[1672880910824,49.76784242,13.164,13.161,15.13]
[1672880913765,49.76784242,13.164,13.161,14.89752965]
[1672880914081,10.0,13.163,13.161,14.89752965]
[1672880915864,10.0,13.163,13.158,15.01]
[1672880920171,10.0,13.163,13.157,0.06789117]
[1672880923110,109.46064242,13.164,13.157,0.06789117]
[1672880923321,44.5628,13.164,13.157,0.06789117]
[1672880923741,44.5628,13.164,13.157,15.06789117]
[1672880925108,94.33064242,13.164,13.157,15.06789117]
[1672880925421,10.0,13.163,13.157,0.06789117]
[1672880925630,15.13,13.161,13.157,9.117e-05]
[1672880925844,15.13,13.161,13.143,10.0]
[1672880926051,10.0,13.16,13.15,15.12]
[1672880926793,10.06919852,13.16,13.15,15.12]
[1672880927634,25.11919852,13.16,13.148,15.13]
[1672880927842,0.07058206,13.159,13.148,15.13]
[1672880929213,0.07058206,13.159,13.148,15.01]
[1672880929628,49.76784242,13.154,13.148,15.01]
[1672880929941,10.0,13.153,13.148,15.01]
[1672880932884,10.0,13.155,13.148,15.01]
[1672880933101,49.76784242,13.154,13.148,15.01]
[1672880933308,10.0,13.153,13.148,15.01]
[1672880934884,10.0,13.155,13.148,15.01]
[1672880935096,0.06966803,13.156,13.15,15.01]
[1672880937827,49.76784242,13.154,13.15,15.01]
[1672880938039,10.0,13.153,13.15,15.01]
[1672880938878,49.76784242,13.154,13.15,15.01]
[1672880940242,10.0,13.155,13.15,15.01]
[1672880940763,10.0,13.153,13.147,15.0]
[1672880941720,49.76784242,13.154,13.147,15.0]
[1672880942554,10.0,13.153,13.147,15.0]
[1672880942864,10.0,13.153,13.145,15.01]
[1672880943920,10.0,13.153,13.143,15.13]
[1672880944125,53.4186855,13.153,13.143,15.13]
[1672880944659,43.4186855,13.153,13.145,15.01]
[1672880945079,10.0,13.152,13.145,15.01]
[1672880947600,10.0,13.152,13.139,10.0]
[1672880947601,10.0,13.152,13.143,15.01]
[1672880947810,25.11242222,13.152,13.141,15.36215758]
[1672880948761,25.11242222,13.152,13.141,15.13]
[1672880949179,25.11242222,13.152,13.141,15.36215758]
[1672880949392,82.14242222,13.152,13.141,15.36215758]
[1672880950230,82.14242222,13.152,13.141,15.13]
[1672880950438,82.14242222,13.152,13.141,15.36215758]
[1672880951184,82.14242222,13.152,13.141,15.13]
[1672880951491,10.0,13.145,13.134,15.0]
[1672880951702,49.83702971,13.144,13.134,15.0]
[1672880952023,10.0,13.143,13.134,15.0]
[1672880952440,10.0,13.143,13.133,15.12]
[1672880952649,10.0,13.143,13.132,15.01]
[1672880952861,0.0605826,13.142,13.132,15.01]
[1672880954955,0.0605826,13.142,13.131,0.23215758]
[1672880954956,15.1905826,13.142,13.131,0.23215758]
[1672880955272,15.05,13.14,13.129,15.01]
[1672880955484,14.98744939,13.13,13.118,15.12]
[1672880955695,49.76784242,13.119,13.108,0.1]
[1672880955905,99.76784242,13.109,13.069,153.074]
[1672880956117,49.83128605,13.094,13.071,0.23215758]
[1672880956324,0.0650387,13.087,13.071,0.23215758]
[1672880956533,15.18609732,13.084,13.071,15.23215758]
[1672880956848,15.18609732,13.084,13.05,151.3]
[1672880956849,114.587,13.095,13.084,75.71]
[1672880957064,49.76784242,13.114,13.09,0.23215758]
[1672880957272,38.143,13.112,13.1,0.23215758]
[1672880957480,49.76784242,13.114,13.09,0.23215758]
[1672880957687,0.06776999,13.107,13.097,0.06889434]
[1672880957900,64.89784242,13.104,13.091,15.12]
[1672880958111,0.06710679,13.102,13.093,15.18826567]
[1672880958531,0.06710679,13.102,13.095,15.0]
[1672880958846,0.06710679,13.102,13.101,15.13]
[1672880959058,0.06989824,13.106,13.102,0.06]
[1672880959272,0.0602397,13.109,13.105,15.12]
[1672880959475,0.06906906,13.112,13.108,15.12]
[1672880959690,10.0,13.113,13.109,10.0]
[1672880960219,10.0,13.113,13.108,15.12]
[1672880960635,10.0,13.113,13.107,15.01]
[1672880960851,48.141,13.113,13.105,0.06397941]
[1672880961061,15.12,13.111,13.105,0.06397941]
[1672880961271,10.0,13.11,13.105,0.06397941]
[1672880962637,10.0,13.105,13.099,15.0]
[1672880962842,49.76784242,13.104,13.099,15.0]
[1672880963056,10.0,13.11,13.099,15.0]
[1672880963269,10.0,13.11,13.102,15.13]
[1672880964003,0.06312489,13.111,13.105,15.0]
[1672880964218,0.06233103,13.113,13.11,15.12]
[1672880964431,10.0,13.114,13.11,15.12]
[1672880964953,10.0,13.114,13.107,15.01]
[1672880965369,10.0,13.112,13.109,15.13]
[1672880965576,10.0,13.114,13.109,15.13]
[1672880965784,10.0,13.112,13.109,15.13]
[1672880966214,10.0,13.114,13.109,15.13]
[1672880967155,44.53910139,13.115,13.109,15.13]
[1672880967581,44.53910139,13.115,13.111,15.12]
[1672880967896,49.76784242,13.113,13.111,15.12]
[1672880968209,0.0631101,13.118,13.112,15.13]
[1672880968419,10.0,13.119,13.112,15.13]
[1672880969157,584.07142084,13.12,13.115,15.13]
[1672880969359,584.0,13.12,13.116,15.12]
[1672880969570,95.86734242,13.122,13.116,15.12]
[1672880969777,10.0,13.121,13.118,15.12]
[1672880970419,10.0,13.121,13.113,15.12]
[1672880971251,15.13,13.118,13.106,15.01]
[1672880971465,10.0,13.116,13.106,15.01]
[1672880971887,10.0,13.116,13.108,15.12]
[1672880972840,49.76784242,13.113,13.108,15.12]
[1672880973045,49.76784242,13.113,13.109,15.13]
[1672880973260,10.06807753,13.116,13.111,15.12]
[1672880973569,10.0,13.116,13.111,15.12]
[1672880973785,75.05,13.116,13.104,15.0]
[1672880973995,15.13,13.114,13.102,15.12]
[1672880974204,49.76784242,13.113,13.102,15.12]
[1672880974412,49.83294106,13.112,13.107,15.0]
[1672880974726,10.0,13.111,13.107,15.0]
[1672880975046,10.0,13.111,13.102,15.12]
[1672880975256,10.06251104,13.111,13.1,15.12]
[1672880976095,10.06251104,13.111,13.101,10.0]
[1672880976306,49.67451273,13.102,13.101,10.0]
[1672880976517,49.67451273,13.102,13.1,15.12]
[1672880976725,0.06221553,13.106,13.1,15.12]
[1672880977036,49.67451273,13.102,13.097,15.12]
[1672880977246,49.67451273,13.102,13.095,10.0]
[1672880977247,10.0,13.101,13.095,15.12]
[1672880978293,49.67451273,13.102,13.095,15.12]
[1672880978926,0.06157163,13.103,13.095,15.12]
[1672880979141,49.67451273,13.102,13.093,15.01]
[1672880979351,10.0,13.101,13.094,10.0]
[1672880979562,0.06157163,13.103,13.094,10.0]
[1672880979773,0.06157163,13.103,13.095,15.13]
[1672880979984,49.67451273,13.102,13.096,10.0]
[1672880980718,49.67451273,13.102,13.095,15.13]
[1672880980929,49.67451273,13.102,13.097,15.0]
[1672880981664,49.67451273,13.102,13.098,10.0]
[1672880982084,49.67451273,13.102,13.096,10.0]
[1672880982295,49.67451273,13.102,13.095,53.21]
[1672880982511,10.0,13.101,13.092,53.0]
[1672880982710,10.0,13.101,13.093,10.0]
[1672880983981,10.0,13.101,13.092,53.0]
[1672880984608,49.67451273,13.102,13.092,53.0]
[1672880985347,49.67451273,13.102,13.093,10.0]
[1672880985554,49.67451273,13.102,13.095,53.21]
[1672880986292,49.67451273,13.102,13.096,10.0]
[1672880986503,49.67451273,13.102,13.095,53.21]
[1672880986819,10.0,13.101,13.092,62.8]
[1672880987025,10.0,13.101,13.092,52.8]
[1672880987236,10.0,13.101,13.092,52.62361115]
[1672880987654,10.0,13.101,13.093,10.0]
[1672880987865,92.95521273,13.102,13.093,10.0]
[1672880988597,92.95521273,13.102,13.09,63.21]
[1672880988598,10.0,13.101,13.09,63.21]
[1672880988812,0.06869329,13.1,13.09,63.21]
[1672880989653,0.06869329,13.1,13.093,53.2]
[1672880989973,0.06869329,13.1,13.094,10.0]
[1672880990496,49.67451273,13.095,13.09,63.21]
[1672880990707,49.67451273,13.092,13.09,63.21]
[1672880990921,0.06074824,13.096,13.09,53.21]
[1672880991127,49.67451273,13.092,13.091,10.0]
[1672880991437,0.06287737,13.098,13.09,53.21]
[1672880991757,0.06287737,13.098,13.091,10.0]
[1672880992598,38.201,13.092,13.091,10.0]
[1672880992807,76.382,13.096,13.09,53.21]
[1672880992808,10.0,13.095,13.09,53.21]
[1672880993121,38.201,13.092,13.09,53.21]
[1672880993751,38.201,13.092,13.089,10.0]
[1672880993963,87.87551273,13.092,13.089,10.0]
[1672880994171,87.87551273,13.092,13.088,53.21]
[1672880995008,10.0,13.091,13.084,10.0]
[1672880995432,10.0,13.091,13.083,52.8]
[1672880995644,49.74054247,13.092,13.083,52.8]
[1672880995848,10.0,13.091,13.083,52.8]
[1672880996268,53.21,13.09,13.076,10.0]
[1672880996479,53.27323222,13.088,13.072,53.2]
[1672880996688,49.67451273,13.082,13.073,10.0]
[1672880996897,10.0,13.081,13.073,10.0]
[1672880997433,10.0,13.081,13.068,53.21]
[1672880997646,0.06589955,13.079,13.069,10.0]
[1672880997854,0.06589955,13.079,13.071,53.2]
[1672880998168,0.06589955,13.079,13.072,10.0]
[1672880998905,10.06589955,13.079,13.071,53.2]
[1672880999220,10.06589955,13.079,13.069,10.0]
[1672880999430,10.06589955,13.079,13.068,53.21]
[1672881000053,114.78389955,13.079,13.071,53.21]
[1672881000682,114.78389955,13.079,13.072,10.0]
[1672881001103,114.78389955,13.079,13.071,53.21]
[1672881001319,114.78389955,13.079,13.069,10.0]
[1672881001320,114.78389955,13.079,13.07,53.0]
[1672881001635,114.78389955,13.079,13.071,10.0]
[1672881002058,10.0,13.078,13.07,53.0]
[1672881002369,10.0,13.071,13.07,53.0]
[1672881002581,49.67451273,13.072,13.07,53.0]
[1672881002783,38.263,13.071,13.07,53.0]
[1672881003003,0.06910983,13.076,13.07,53.0]
[1672881003214,49.67451273,13.071,13.064,222.84]
[1672881003418,0.06121521,13.073,13.071,10.0]
[1672881003633,0.06364285,13.077,13.071,10.0]
[1672881003849,76.499,13.076,13.071,10.0]
[1672881004268,114.747,13.076,13.071,10.0]
[1672881005007,114.747,13.076,13.07,52.8]
[1672881005421,114.747,13.076,13.068,53.0]
[1672881005842,114.747,13.076,13.069,10.0]
[1672881006161,49.67451273,13.071,13.066,53.21]
[1672881006368,10.0,13.07,13.066,53.21]
[1672881006787,49.67451273,13.071,13.066,53.21]
[1672881007100,10.0,13.07,13.066,53.21]
[1672881007732,49.67451273,13.071,13.066,53.21]
[1672881008154,0.07113954,13.073,13.067,10.0]
[1672881008681,0.07113954,13.073,13.069,53.21]
[1672881008883,0.00113954,13.073,13.071,53.21]
[1672881009099,49.60451273,13.081,13.072,10.0]
[1672881009309,49.60451273,13.081,13.077,53.21]
[1672881009625,55.7993,13.09,13.077,53.21]
[1672881009833,10.0,13.089,13.08,53.21]
[1672881010045,0.06621448,13.088,13.08,53.21]
[1672881010250,0.06621448,13.088,13.081,62.93]
[1672881010458,0.00621448,13.088,13.087,53.21]
[1672881010677,10.0,13.096,13.087,53.21]
[1672881010878,49.60451273,13.091,13.084,52.8]
[1672881012038,49.60451273,13.091,13.085,10.0]
[1672881012775,38.213,13.088,13.085,10.0]
[1672881012987,38.213,13.088,13.084,52.8]
[1672881013402,38.213,13.088,13.085,10.0]
[1672881013608,49.60451273,13.091,13.087,53.0]
[1672881013824,49.60451273,13.091,13.088,10.0]
[1672881014039,0.06157215,13.092,13.09,53.21]
[1672881014240,0.06733209,13.096,13.091,10.0]
[1672881014662,0.06733209,13.096,13.092,52.8]
[1672881014869,0.06733209,13.096,13.092,72.8]
[1672881015084,0.06733209,13.096,13.093,10.0]
[1672881015292,0.06989972,13.099,13.095,53.21]
[1672881015509,49.60451273,13.1,13.095,53.21]
[1672881015710,10.0,13.099,13.095,53.21]
[1672881015925,10.0,13.099,13.094,52.93]
[1672881016137,10.0,13.099,13.095,10.0]
[1672881016347,49.60451273,13.1,13.094,52.93]
[1672881016769,49.60451273,13.1,13.092,53.27034454]
[1672881016974,38.19,13.097,13.092,0.06034454]
[1672881017191,10.0,13.096,13.084,53.2]
[1672881017392,114.601,13.093,13.084,53.2]
[1672881017608,10.0,13.092,13.084,53.2]
[1672881017817,114.601,13.093,13.084,53.2]
[1672881017818,38.2,13.093,13.084,53.2]
[1672881018027,38.202,13.092,13.086,53.21]
[1672881018239,49.60451273,13.09,13.086,53.21]
[1672881018450,49.60451273,13.09,13.087,10.0]
[1672881019072,38.207,13.09,13.086,53.21]
[1672881019289,87.81151273,13.09,13.086,53.21]
[1672881019918,10.0,13.089,13.084,0.07097977]
[1672881020129,38.214,13.088,13.084,0.07097977]
[1672881020340,10.0,13.087,13.084,0.07097977]
[1672881020549,38.219,13.086,13.083,52.93]
[1672881020969,38.219,13.086,13.076,10.0]
[1672881020970,10.0,13.085,13.076,52.93]
[1672881021181,38.23,13.083,13.076,52.93]
[1672881021397,10.0,13.082,13.076,52.93]
[1672881021707,49.60451273,13.08,13.076,52.93]
[1672881021911,87.84251273,13.08,13.076,52.93]
[1672881022332,38.238,13.08,13.076,52.93]
[1672881023386,87.84251273,13.08,13.076,52.93]
[1672881024022,38.238,13.08,13.076,52.93]
[1672881025693,38.238,13.08,13.074,52.74]
[1672881025910,38.238,13.08,13.075,10.0]
[1672881026330,38.238,13.08,13.071,53.21]
[1672881026539,10.0,13.079,13.071,53.21]
[1672881026854,38.245,13.077,13.072,10.0]
[1672881027070,10.0,13.076,13.068,86.3]
[1672881027278,0.07010616,13.077,13.068,86.3]
[1672881027484,38.255,13.074,13.068,86.3]
[1672881027695,10.07010616,13.077,13.068,86.3]
[1672881027902,0.07010616,13.077,13.068,86.3]
[1672881028223,10.0,13.075,13.068,86.3]
[1672881028954,38.255,13.074,13.068,76.3]
[1672881029275,49.60451273,13.07,13.061,76.3]
[1672881029485,38.273,13.068,13.062,10.0]
[1672881032629,38.273,13.068,13.061,76.3]
[1672881032847,10.0,13.067,13.058,76.3]
[1672881033057,114.847,13.065,13.059,10.0]
[1672881033261,10.0,13.064,13.059,10.0]
[1672881033478,10.0,13.064,13.058,76.3]
[1672881033688,38.288,13.063,13.058,76.3]
[1672881033895,38.288,13.063,13.054,76.23]
[1672881034214,114.894,13.059,13.052,0.1]
[1672881034427,229.788,13.059,13.052,10.1]
[1672881034633,10.0,13.058,13.052,0.1]
[1672881034949,114.918,13.057,13.052,10.1]
[1672881035155,114.918,13.057,13.052,0.1]
[1672881035366,114.918,13.057,13.052,10.1]
[1672881035581,114.918,13.057,13.052,0.1]
[1672881036839,153.245,13.055,13.047,75.77]
[1672881037051,153.245,13.055,13.045,10.0]
[1672881037260,153.245,13.055,13.046,0.39548727]
[1672881037891,10.0,13.054,13.046,0.39548727]
[1672881038097,114.96,13.052,13.046,0.39548727]
[1672881038310,10.0,13.051,13.041,76.3]
[1672881038515,55.61046519,13.051,13.042,10.0]
[1672881038732,114.991,13.048,13.046,76.69548727]
[1672881038939,114.991,13.048,13.047,10.0]
[1672881039575,114.991,13.048,13.046,76.3]
[1672881039777,10.0,13.047,13.042,10.0]
[1672881039990,38.337,13.046,13.042,86.3]
[1672881040200,38.337,13.046,13.042,76.3]
[1672881041035,38.353,13.041,13.03,57.56]
[1672881041246,10.0,13.047,13.04,76.3]
[1672881041461,10.0,13.047,13.041,10.0]
[1672881041780,38.338,13.046,13.04,76.3]
[1672881041989,10.0,13.045,13.04,76.3]
[1672881042195,115.03,13.044,13.04,76.3]
[1672881042411,10.0,13.043,13.04,76.3]
[1672881042833,38.348,13.042,13.04,76.3]
[1672881043146,10.0,13.045,13.04,76.3]
[1672881043356,38.345,13.043,13.04,76.3]
[1672881043567,86.669,13.047,13.04,76.3]
[1672881043883,38.342,13.044,13.04,76.3]
[1672881044312,10.0,13.043,13.04,76.3]
[1672881044520,38.348,13.042,13.04,76.3]
[1672881045252,10.0,13.044,13.04,76.3]
[1672881045457,10.0,13.047,13.04,76.3]
[1672881045668,38.39893781,13.048,13.041,10.0]
[1672881045988,0.06728037,13.049,13.045,10.0]
[1672881046201,0.06970279,13.052,13.045,10.0]
[1672881046827,38.324,13.051,13.044,76.3]
[1672881047038,10.0,13.05,13.044,76.3]
[1672881047243,86.655,13.05,13.044,76.3]
[1672881047462,38.329,13.049,13.044,76.3]
[1672881047771,76.668,13.047,13.044,76.3]
[1672881048091,115.002,13.047,13.044,76.3]
[1672881048407,38.334,13.047,13.044,76.3]
[1672881048618,10.0,13.048,13.044,76.3]
[1672881049239,38.333,13.047,13.044,76.3]
[1672881049659,48.337,13.046,13.044,76.3]
[1672881050298,38.337,13.046,13.044,76.3]
[1672881053554,38.337,13.046,13.04,76.3]
[1672881054496,38.15260748,13.046,13.04,76.3]
[1672881054704,38.15260748,13.046,13.041,10.0]
[1672881055125,126.72822996,13.048,13.041,10.0]
[1672881055126,0.06322996,13.048,13.043,76.3]
[1672881055336,0.06322996,13.048,13.044,10.0]
[1672881055545,119.9996,13.055,13.046,76.3]
[1672881055752,38.312,13.055,13.046,76.3]
[1672881055964,38.312,13.055,13.047,10.0]
[1672881056387,10.0,13.054,13.046,76.3]
[1672881056596,38.317,13.053,13.046,76.3]
[1672881056805,10.0,13.052,13.046,76.3]
[1672881057011,10.0,13.052,13.045,0.06269384]
[1672881057221,52.8402,13.052,13.045,0.06269384]
[1672881057646,129.4812,13.052,13.045,0.06269384]
[1672881058908,125.0,13.047,13.045,0.00269384]
[1672881061331,38.342,13.044,13.039,53.3]
[1672881061538,38.342,13.044,13.03,10.0]
[1672881061539,10.0,13.043,13.041,53.58]
[1672881061751,10.0,13.046,13.041,53.58]
[1672881061752,10.0,13.046,13.042,10.0]
[1672881061963,38.337,13.046,13.042,10.0]
[1672881062173,0.06127637,13.047,13.041,53.58]
[1672881062483,0.06127637,13.047,13.042,10.0]
[1672881062698,38.39427637,13.047,13.044,53.66]
[1672881062905,38.333,13.047,13.044,53.66]
[1672881063119,50.0,13.048,13.044,53.66]
[1672881063849,88.331,13.048,13.044,53.66]
[1672881064583,50.0,13.048,13.044,53.66]
[1672881064789,38.328,13.049,13.044,53.66]
[1672881065003,0.0011103,13.05,13.047,53.42]
[1672881065214,50.0,13.058,13.049,53.66]
[1672881065427,44.419,13.059,13.049,53.66]
[1672881065635,38.307,13.056,13.049,53.66]
[1672881065846,10.0,13.055,13.049,53.66]
[1672881066267,38.315,13.054,13.049,53.66]
[1672881066482,10.0,13.053,13.047,53.72812587]
[1672881066797,38.321,13.052,13.047,53.72812587]
[1672881066997,38.321,13.052,13.047,0.06812587]
[1672881066998,10.0,13.051,13.047,0.06812587]
[1672881067423,50.0,13.048,13.047,0.06812587]
[1672881067740,126.661,13.048,13.044,53.58]
[1672881067940,10.0,13.047,13.044,53.58]
[1672881068368,50.0,13.048,13.044,53.58]
[1672881069101,38.38813198,13.051,13.046,53.56]
[1672881069319,0.06413198,13.051,13.046,53.56]
[1672881069523,0.06413198,13.051,13.047,10.0]
[1672881069941,0.06413198,13.051,13.045,10.0]
[1672881070150,38.324,13.05,13.045,10.0]
[1672881070680,0.06413198,13.051,13.047,76.56]
[1672881070885,0.06413198,13.051,13.048,10.0]
[1672881071096,209.0968,13.058,13.048,10.0]
[1672881071307,50.06498342,13.058,13.048,10.0637066]
[1672881072361,88.36698342,13.058,13.051,76.56]
[1672881073089,88.36698342,13.058,13.048,86.6237066]
[1672881073303,10.0,13.057,13.048,86.6237066]
[1672881073516,114.936,13.055,13.048,76.6237066]
[1672881073725,10.0,13.054,13.048,76.6237066]
[1672881073938,10.0,13.054,13.048,0.0637066]
[1672881074145,10.0,13.052,13.048,0.0637066]
[1672881074982,114.966,13.051,13.048,0.0637066]
[1672881075197,10.0,13.05,13.045,0.07040481]
[1672881075835,114.987,13.049,13.045,0.07040481]
[1672881076142,10.0,13.048,13.045,0.07040481]
[1672881076353,115.0,13.047,13.043,76.56]
[1672881076665,10.0,13.046,13.043,76.56]
[1672881077615,38.333,13.047,13.043,76.56]
[1672881077827,50.0,13.057,13.044,10.0]
[1672881078035,124.927,13.056,13.044,10.0]
[1672881078559,114.984,13.049,13.043,76.56]
[1672881078877,50.0,13.047,13.043,76.56]
[1672881079076,38.337,13.046,13.043,76.56]
[1672881079502,10.0,13.045,13.042,0.06373996]
[1672881079714,115.026,13.044,13.039,0.06587416]
[1672881080030,115.026,13.044,13.037,76.13552064]
[1672881081708,10.0,13.043,13.037,76.13552064]
[1672881081922,115.051,13.042,13.037,0.00202064]
[1672881082135,50.0,13.038,13.037,0.00202064]
[1672881082345,50.0,13.038,13.02,10.0]
[1672881082657,115.108,13.035,13.029,75.82]
[1672881083079,10.0,13.034,13.027,0.07048329]
[1672881083394,10.0,13.031,13.027,10.0]
[1672881083611,10.0,13.031,13.026,76.62884782]
[1672881083918,10.0,13.032,13.026,76.62884782]
[1672881084129,38.383,13.03,13.026,76.62884782]
[1672881084553,38.374,13.033,13.027,10.0]
[1672881084760,10.0,13.032,13.027,10.0]
[1672881085179,10.06327227,13.035,13.027,10.0]
[1672881085917,38.372,13.034,13.027,10.0]
[1672881086125,10.0,13.033,13.027,10.0]
[1672881086547,38.372,13.034,13.027,10.0]
[1672881086758,38.373,13.034,13.027,10.0]
[1672881087071,0.06327227,13.035,13.03,10.0]
[1672881087483,0.06327227,13.035,13.034,76.56]
[1672881087694,43.3822,13.043,13.034,76.56]
[1672881087902,43.3822,13.043,13.035,10.0]
[1672881088117,10.0,13.044,13.038,10.0]
[1672881088960,76.681,13.045,13.038,10.0]
[1672881088961,38.347,13.043,13.038,10.0]
[1672881089165,0.06997623,13.046,13.04,76.35]
[1672881089591,38.40797623,13.046,13.04,76.35]
[1672881089803,0.06997623,13.046,13.041,10.0]
[1672881090216,38.40597623,13.046,13.039,76.6934092]